[Event "*** Titled Tuesday Blitz"]
[Site "Chess.com"]
[Date "2020.11.10"]
[Round "6"]
[White "banane_verte"]
[Black "Pertinhez76"]
[Result "0-1"]
[WhiteElo "2384"]
[BlackElo "2128"]
[TimeControl "180+1"]
[EndTime "11:12:37 PST"]
[Termination "Pertinhez76 won on time"]

1. e4 {[%clk 0:03:00.9]} 1... e6 {[%clk 0:02:30.8]} 2. g3 {[%clk 0:03:01.8]}
2... c5 {[%clk 0:02:23.7]} 3. Bg2 {[%clk 0:02:59.6]} 3... Nc6 {[%clk 0:02:24.2]}
4. d3 {[%clk 0:02:57.5]} 4... g6 {[%clk 0:02:18.2]} 5. Nd2 {[%clk 0:02:57.7]}
5... Bg7 {[%clk 0:02:18.8]} 6. Ngf3 {[%clk 0:02:55.9]} 6... Nge7 {[%clk
0:02:19.2]} 7. O-O {[%clk 0:02:52.6]} 7... d6 {[%clk 0:02:19.8]} 8. Re1 {[%clk
0:02:53.5]} 8... O-O {[%clk 0:02:19.7]} 9. Nf1 {[%clk 0:02:53]} 9... Qc7 {[%clk
0:02:18.2]} 10. Bf4 {[%clk 0:02:50.2]} 10... b5 {[%clk 0:02:15.2]} 11. Qd2
{[%clk 0:02:49.2]} 11... a5 {[%clk 0:02:14.2]} 12. Bh6 {[%clk 0:02:49]} 12... f5
{[%clk 0:02:12.3]} 13. h4 {[%clk 0:02:47.3]} 13... Nd4 {[%clk 0:02:05.5]} 14.
Bxg7 {[%clk 0:02:44.5]} 14... Kxg7 {[%clk 0:02:05]} 15. exf5 {[%clk 0:02:39]}
15... Nxf3+ {[%clk 0:02:02.7]} 16. Bxf3 {[%clk 0:02:39]} 16... Bb7 {[%clk
0:01:57.8]} 17. Bxb7 {[%clk 0:02:38.1]} 17... Qxb7 {[%clk 0:01:57.9]} 18. fxe6
{[%clk 0:02:37.7]} 18... Rf6 {[%clk 0:01:54.2]} 19. h5 {[%clk 0:02:34.8]} 19...
b4 {[%clk 0:01:52.7]} 20. h6+ {[%clk 0:02:32.4]} 20... Kh8 {[%clk 0:01:51.2]}
21. Qg5 {[%clk 0:02:33.3]} 21... Raf8 {[%clk 0:01:51]} 22. Re2 {[%clk
0:02:32.7]} 22... Qf3 {[%clk 0:01:49.4]} 23. Rae1 {[%clk 0:02:30.8]} 23... a4
{[%clk 0:01:27.3]} 24. Nd2 {[%clk 0:02:30.6]} 24... Qf5 {[%clk 0:01:26.4]} 25.
Ne4 {[%clk 0:02:26.4]} 25... Rxe6 {[%clk 0:01:20]} 26. Qxf5 {[%clk 0:02:21.9]}
26... Nxf5 {[%clk 0:01:19]} 27. Ng5 {[%clk 0:02:06.8]} 27... Rxe2 {[%clk
0:01:16.9]} 28. Rxe2 {[%clk 0:02:07.7]} 28... Nxh6 {[%clk 0:01:17.1]} 29. Re6
{[%clk 0:02:07]} 29... Rd8 {[%clk 0:01:11.8]} 30. Re7 {[%clk 0:02:02.3]} 30...
Kg8 {[%clk 0:01:10.8]} 31. Rxh7 {[%clk 0:01:57.3]} 31... Nf5 {[%clk 0:01:07]}
32. Ra7 {[%clk 0:01:45.5]} 32... b3 {[%clk 0:01:06.4]} 33. cxb3 {[%clk 0:01:40]}
33... axb3 {[%clk 0:01:07.3]} 34. a4 {[%clk 0:01:40.7]} 34... Nd4 {[%clk
0:01:05.2]} 35. a5 {[%clk 0:01:38.8]} 35... Re8 {[%clk 0:01:04.1]} 36. a6 {[%clk
0:01:35.8]} 36... Re1+ {[%clk 0:01:03.7]} 37. Kg2 {[%clk 0:01:35.9]} 37... Ra1
{[%clk 0:01:02]} 38. Ra8+ {[%clk 0:01:27.1]} 38... Kg7 {[%clk 0:01:00.7]} 39. a7
{[%clk 0:01:28]} 39... Nc6 {[%clk 0:00:47.6]} 40. Ne6+ {[%clk 0:01:25.5]} 40...
Kh7 {[%clk 0:00:45.4]} 41. Nf8+ {[%clk 0:01:16.4]} 41... Kh6 {[%clk 0:00:40.6]}
42. Ne6 {[%clk 0:01:13.1]} 42... Rxa7 {[%clk 0:00:40.3]} 43. Rc8 {[%clk
0:01:01.2]} 43... Ne5 {[%clk 0:00:35.8]} 44. d4 {[%clk 0:00:54.3]} 44... cxd4
{[%clk 0:00:35.9]} 45. Nxd4 {[%clk 0:00:54.6]} 45... Ra2 {[%clk 0:00:34.6]} 46.
Nxb3 {[%clk 0:00:51.5]} 46... Rxb2 {[%clk 0:00:34.8]} 47. Nd4 {[%clk 0:00:51.6]}
47... Ng4 {[%clk 0:00:32]} 48. Rf8 {[%clk 0:00:48.7]} 48... Ne3+ {[%clk
0:00:23.3]} 49. Kf3 {[%clk 0:00:47.2]} 49... Nd1 {[%clk 0:00:21.3]} 50. Kg2
{[%clk 0:00:43.2]} 50... Ne3+ {[%clk 0:00:20.1]} 51. Kh3 {[%clk 0:00:42]} 51...
Nd1 {[%clk 0:00:19.2]} 52. Ne6 {[%clk 0:00:41]} 52... g5 {[%clk 0:00:18.5]} 53.
Rf6+ {[%clk 0:00:33.9]} 53... Kh7 {[%clk 0:00:18.1]} 54. Nxg5+ {[%clk
0:00:34.3]} 54... Kg7 {[%clk 0:00:18.5]} 55. Rxd6 {[%clk 0:00:28]} 55... Nxf2+
{[%clk 0:00:18.4]} 56. Kh4 {[%clk 0:00:25.4]} 56... Rb4+ {[%clk 0:00:18.4]} 57.
Kh5 {[%clk 0:00:26]} 57... Rb1 {[%clk 0:00:16.7]} 58. Rd7+ {[%clk 0:00:24.1]}
58... Kg8 {[%clk 0:00:17.6]} 59. g4 {[%clk 0:00:20.9]} 59... Rb5 {[%clk
0:00:15.1]} 60. Rd8+ {[%clk 0:00:14.8]} 60... Kg7 {[%clk 0:00:14.4]} 61. Rd7+
{[%clk 0:00:15.7]} 61... Kg8 {[%clk 0:00:14.6]} 62. Kh6 {[%clk 0:00:16.2]} 62...
Nxg4+ {[%clk 0:00:13]} 63. Kg6 {[%clk 0:00:15.6]} 63... Ne5+ {[%clk 0:00:13.2]}
64. Kh6 {[%clk 0:00:14.7]} 64... Nxd7 {[%clk 0:00:14.1]} 65. Kh5 {[%clk
0:00:14.9]} 65... Nf8 {[%clk 0:00:13.8]} 66. Kh6 {[%clk 0:00:14.8]} 66... Ne6
{[%clk 0:00:14]} 67. Nf3 {[%clk 0:00:12.2]} 67... Rb3 {[%clk 0:00:13.5]} 68. Ne5
{[%clk 0:00:11.8]} 68... Rh3+ {[%clk 0:00:13.1]} 69. Kg6 {[%clk 0:00:11.5]}
69... Nf8+ {[%clk 0:00:14]} 70. Kf6 {[%clk 0:00:10.4]} 70... Rg3 {[%clk
0:00:14.4]} 71. Kf5 {[%clk 0:00:09.6]} 71... Rh3 {[%clk 0:00:14.2]} 72. Kg4
{[%clk 0:00:09.5]} 72... Rh1 {[%clk 0:00:14.6]} 73. Kf5 {[%clk 0:00:09.5]} 73...
Re1 {[%clk 0:00:14.6]} 74. Kf4 {[%clk 0:00:08.2]} 74... Kg7 {[%clk 0:00:15]} 75.
Ng4 {[%clk 0:00:07.6]} 75... Rf1+ {[%clk 0:00:14.8]} 76. Kg3 {[%clk 0:00:06.1]}
76... Rg1+ {[%clk 0:00:14.8]} 77. Kf3 {[%clk 0:00:05.9]} 77... Ng6 {[%clk
0:00:14.6]} 78. Ne3 {[%clk 0:00:05.7]} 78... Nh4+ {[%clk 0:00:13.7]} 79. Kf2
{[%clk 0:00:05.2]} 79... Ra1 {[%clk 0:00:13.6]} 80. Ke2 {[%clk 0:00:04.8]} 80...
Ra2+ {[%clk 0:00:13.6]} 81. Kd3 {[%clk 0:00:04.9]} 81... Ra3+ {[%clk 0:00:13.8]}
82. Kd2 {[%clk 0:00:04.4]} 82... Kg6 {[%clk 0:00:14.2]} 83. Nc2 {[%clk
0:00:03.8]} 83... Rh3 {[%clk 0:00:13.2]} 84. Kc1 {[%clk 0:00:03.8]} 84... Kf5
{[%clk 0:00:13.3]} 85. Kb2 {[%clk 0:00:03.7]} 85... Ke4 {[%clk 0:00:13.5]} 86.
Nb4 {[%clk 0:00:03.4]} 86... Nf5 {[%clk 0:00:13]} 87. Na2 {[%clk 0:00:02.7]}
87... Kd4 {[%clk 0:00:13.1]} 88. Nc1 {[%clk 0:00:02.9]} 88... Nd6 {[%clk
0:00:13]} 89. Nb3+ {[%clk 0:00:02.5]} 89... Kc4 {[%clk 0:00:13.4]} 90. Nd2+
{[%clk 0:00:02.6]} 90... Kb4 {[%clk 0:00:13.7]} 91. Kc2 {[%clk 0:00:02.9]} 91...
Rg3 {[%clk 0:00:11.1]} 92. Kb2 {[%clk 0:00:01.2]} 92... Rg2 {[%clk 0:00:10.2]}
93. Kc1 {[%clk 0:00:01.5]} 93... Kc3 {[%clk 0:00:10.5]} 94. Nb1+ {[%clk
0:00:01.3]} 94... Kd3 {[%clk 0:00:09.9]} 0-1

[Event "*** Titled Tuesday Blitz"]
[Site "Chess.com"]
[Date "2020.11.10"]
[Round "6"]
[White "AnishOnYoutube"]
[Black "TimofeevAr"]
[Result "0-1"]
[WhiteElo "2969"]
[BlackElo "2858"]
[TimeControl "180+1"]
[EndTime "11:12:39 PST"]
[Termination "TimofeevAr won on time"]

1. e4 {[%clk 0:03:00.9]} 1... d5 {[%clk 0:02:59.6]} 2. exd5 {[%clk 0:03:00.9]}
2... Nf6 {[%clk 0:02:59.7]} 3. Nf3 {[%clk 0:03:00.5]} 3... Nxd5 {[%clk
0:02:58.7]} 4. d4 {[%clk 0:03:00]} 4... g6 {[%clk 0:02:58.7]} 5. c4 {[%clk
0:03:00.4]} 5... Nf6 {[%clk 0:02:58.9]} 6. Nc3 {[%clk 0:03:00]} 6... Bg7 {[%clk
0:02:59.2]} 7. Be2 {[%clk 0:02:58.8]} 7... O-O {[%clk 0:02:59.2]} 8. O-O {[%clk
0:02:57.7]} 8... Nbd7 {[%clk 0:02:58.8]} 9. h3 {[%clk 0:02:36.8]} 9... c6 {[%clk
0:02:57.9]} 10. Be3 {[%clk 0:02:33]} 10... a5 {[%clk 0:02:56.7]} 11. Qc2 {[%clk
0:02:24.9]} 11... Nb6 {[%clk 0:02:55.8]} 12. Rad1 {[%clk 0:02:23.9]} 12... Bf5
{[%clk 0:02:55.2]} 13. Qc1 {[%clk 0:02:24.4]} 13... a4 {[%clk 0:02:47.2]} 14.
Rfe1 {[%clk 0:02:24.4]} 14... Ne4 {[%clk 0:02:35.6]} 15. Nxe4 {[%clk 0:01:58.6]}
15... Bxe4 {[%clk 0:02:35.3]} 16. Ne5 {[%clk 0:01:58.4]} 16... Bf5 {[%clk
0:02:31.8]} 17. Bf1 {[%clk 0:01:54.5]} 17... Nd7 {[%clk 0:02:27.7]} 18. Nf3
{[%clk 0:01:53]} 18... Nf6 {[%clk 0:02:23.9]} 19. Bf4 {[%clk 0:01:51.9]} 19...
Re8 {[%clk 0:02:22.7]} 20. Be5 {[%clk 0:01:50.9]} 20... Qa5 {[%clk 0:02:20.8]}
21. a3 {[%clk 0:01:40.1]} 21... Rad8 {[%clk 0:02:16.9]} 22. g4 {[%clk
0:01:36.3]} 22... Bc8 {[%clk 0:01:19.4]} 23. Qf4 {[%clk 0:01:35.8]} 23... Qb6
{[%clk 0:01:19.7]} 24. Bc7 {[%clk 0:01:32.4]} 24... Qxb2 {[%clk 0:01:19.6]} 25.
Bxd8 {[%clk 0:01:32.9]} 25... Rxd8 {[%clk 0:01:20]} 26. Rd3 {[%clk 0:01:21.1]}
26... e6 {[%clk 0:01:12.9]} 27. Qc7 {[%clk 0:01:12.1]} 27... Rf8 {[%clk
0:01:12.6]} 28. Ne5 {[%clk 0:01:09.4]} 28... Ne8 {[%clk 0:01:08.3]} 29. Qa5
{[%clk 0:01:07.2]} 29... Nd6 {[%clk 0:01:08.1]} 30. Qxa4 {[%clk 0:01:03.7]}
30... b5 {[%clk 0:01:02.8]} 31. cxb5 {[%clk 0:00:52]} 31... cxb5 {[%clk
0:01:00.1]} 32. Qb3 {[%clk 0:00:50.9]} 32... Qxb3 {[%clk 0:00:56.8]} 33. Rxb3
{[%clk 0:00:51.8]} 33... Bb7 {[%clk 0:00:54.5]} 34. Bxb5 {[%clk 0:00:48.9]}
34... Bd5 {[%clk 0:00:54.6]} 35. Rb4 {[%clk 0:00:49.2]} 35... Nxb5 {[%clk
0:00:49.4]} 36. Rxb5 {[%clk 0:00:49.4]} 36... Ra8 {[%clk 0:00:49.3]} 37. Nd7
{[%clk 0:00:43.9]} 37... Bxd4 {[%clk 0:00:45.3]} 38. Rd1 {[%clk 0:00:23.8]}
38... Bc3 {[%clk 0:00:27.5]} 39. Nb6 {[%clk 0:00:17.1]} 39... Rxa3 {[%clk
0:00:26.6]} 40. Nxd5 {[%clk 0:00:17.8]} 40... exd5 {[%clk 0:00:26.7]} 41. Rbxd5
{[%clk 0:00:18.6]} 41... Bf6 {[%clk 0:00:20.4]} 42. Kg2 {[%clk 0:00:18.9]} 42...
Kg7 {[%clk 0:00:20]} 43. Rd7 {[%clk 0:00:18.3]} 43... Ra4 {[%clk 0:00:19.1]} 44.
Rb1 {[%clk 0:00:16.9]} 44... Rf4 {[%clk 0:00:19]} 45. Rb3 {[%clk 0:00:14.1]}
45... g5 {[%clk 0:00:16.8]} 46. Rf3 {[%clk 0:00:13.3]} 46... Re4 {[%clk
0:00:16.7]} 47. Rf5 {[%clk 0:00:11.8]} 47... h6 {[%clk 0:00:15.6]} 48. Rd3
{[%clk 0:00:10.4]} 48... Re6 {[%clk 0:00:14.9]} 49. Rfd5 {[%clk 0:00:10]} 49...
Re4 {[%clk 0:00:14.7]} 50. Rd6 {[%clk 0:00:09.9]} 50... Rb4 {[%clk 0:00:13.4]}
51. Rd7 {[%clk 0:00:09.6]} 51... Re4 {[%clk 0:00:12.6]} 52. Rb7 {[%clk
0:00:09.3]} 52... Rf4 {[%clk 0:00:11.1]} 53. Rf3 {[%clk 0:00:08.4]} 53... Rc4
{[%clk 0:00:11]} 54. Rd7 {[%clk 0:00:07.5]} 54... Re4 {[%clk 0:00:10.6]} 55. Rd6
{[%clk 0:00:06.5]} 55... Be5 {[%clk 0:00:09.9]} 56. Rdd3 {[%clk 0:00:07]} 56...
Bf6 {[%clk 0:00:09.9]} 57. Rb3 {[%clk 0:00:07.6]} 57... Rc4 {[%clk 0:00:09.9]}
58. Rfe3 {[%clk 0:00:07.4]} 58... Rf4 {[%clk 0:00:09.5]} 59. Re2 {[%clk
0:00:06.8]} 59... Ra4 {[%clk 0:00:05.5]} 60. Rbe3 {[%clk 0:00:07.2]} 60... Rc4
{[%clk 0:00:05.4]} 61. Re4 {[%clk 0:00:07.8]} 61... Rc5 {[%clk 0:00:04.8]} 62.
R2e3 {[%clk 0:00:07.9]} 62... Ra5 {[%clk 0:00:03.8]} 63. Rf3 {[%clk 0:00:08.3]}
63... Rb5 {[%clk 0:00:04.2]} 64. Rc4 {[%clk 0:00:08.6]} 64... Rd5 {[%clk
0:00:04.3]} 65. Re3 {[%clk 0:00:08]} 65... Ra5 {[%clk 0:00:04.4]} 66. Rb4 {[%clk
0:00:08.2]} 66... Rd5 {[%clk 0:00:04.4]} 67. Reb3 {[%clk 0:00:08.5]} 67... Rc5
{[%clk 0:00:04.4]} 68. Rb5 {[%clk 0:00:08.5]} 68... Rc4 {[%clk 0:00:04.7]} 69.
R3b4 {[%clk 0:00:08.9]} 69... Rc3 {[%clk 0:00:04.6]} 70. Rb1 {[%clk 0:00:09.3]}
70... Rc4 {[%clk 0:00:04.8]} 71. R5b4 {[%clk 0:00:09.4]} 71... Rc3 {[%clk
0:00:05.2]} 72. R1b3 {[%clk 0:00:09]} 72... Rc5 {[%clk 0:00:05.3]} 73. Rd3
{[%clk 0:00:09.1]} 73... Ra5 {[%clk 0:00:05.3]} 74. Re4 {[%clk 0:00:08.9]} 74...
Rc5 {[%clk 0:00:05.5]} 75. Rd2 {[%clk 0:00:09.2]} 75... Ra5 {[%clk 0:00:05.7]}
76. Rc2 {[%clk 0:00:09.7]} 76... Rb5 {[%clk 0:00:05.9]} 77. Rce2 {[%clk
0:00:10.3]} 77... Ra5 {[%clk 0:00:06.3]} 78. f4 {[%clk 0:00:09.8]} 78... gxf4
{[%clk 0:00:05.6]} 79. Rxf4 {[%clk 0:00:10]} 79... Bg5 {[%clk 0:00:05.5]} 80.
Rf5 {[%clk 0:00:09.8]} 80... Ra4 {[%clk 0:00:04.6]} 81. Ref2 {[%clk 0:00:08.2]}
81... f6 {[%clk 0:00:04.3]} 82. Kg3 {[%clk 0:00:08.5]} 82... h5 {[%clk
0:00:04.3]} 83. R5f3 {[%clk 0:00:03.7]} 83... hxg4 {[%clk 0:00:04.1]} 84. hxg4
{[%clk 0:00:03.9]} 84... Kg6 {[%clk 0:00:04.5]} 85. Rd3 {[%clk 0:00:03.5]} 85...
Rb4 {[%clk 0:00:04.7]} 86. Rff3 {[%clk 0:00:03.9]} 86... Ra4 {[%clk 0:00:05.1]}
87. Rd8 {[%clk 0:00:04]} 87... Rb4 {[%clk 0:00:05.3]} 88. Rg8+ {[%clk
0:00:04.4]} 88... Kh7 {[%clk 0:00:05.2]} 89. Rc8 {[%clk 0:00:04.3]} 89... Kg6
{[%clk 0:00:05.5]} 90. Rc7 {[%clk 0:00:04.7]} 90... Ra4 {[%clk 0:00:05.3]} 91.
Rd7 {[%clk 0:00:02]} 91... Rb4 {[%clk 0:00:05.5]} 92. Kh3 {[%clk 0:00:01.8]}
92... Ra4 {[%clk 0:00:05.5]} 93. Rb3 {[%clk 0:00:02.4]} 93... Ra8 {[%clk
0:00:02.6]} 94. Rbb7 {[%clk 0:00:02.2]} 94... Rg8 {[%clk 0:00:02.7]} 95. Kg2
{[%clk 0:00:02]} 95... Bh6 {[%clk 0:00:01.9]} 96. Kf3 {[%clk 0:00:02.3]} 96...
Bg5 {[%clk 0:00:02.4]} 97. Re7 {[%clk 0:00:01]} 97... Bh6 {[%clk 0:00:02.4]} 98.
Re6 {[%clk 0:00:01.3]} 98... Bg5 {[%clk 0:00:02.8]} 0-1

[Event "*** Titled Tuesday Blitz"]
[Site "Chess.com"]
[Date "2020.11.10"]
[Round "6"]
[White "Parhamov"]
[Black "exoticprincess"]
[Result "1-0"]
[WhiteElo "2960"]
[BlackElo "2878"]
[TimeControl "180+1"]
[EndTime "11:12:57 PST"]
[Termination "Parhamov won on time"]

1. e4 {[%clk 0:03:00.9]} 1... c6 {[%clk 0:02:57.5]} 2. Nc3 {[%clk 0:02:59.3]}
2... d5 {[%clk 0:02:55.4]} 3. Nf3 {[%clk 0:02:58]} 3... Bg4 {[%clk 0:02:54.6]}
4. h3 {[%clk 0:02:57.4]} 4... Bxf3 {[%clk 0:02:54.5]} 5. Qxf3 {[%clk 0:02:57.3]}
5... e6 {[%clk 0:02:55.4]} 6. g3 {[%clk 0:02:57.5]} 6... g6 {[%clk 0:02:54.4]}
7. Bg2 {[%clk 0:02:57.8]} 7... Bg7 {[%clk 0:02:54.8]} 8. O-O {[%clk 0:02:58.2]}
8... Ne7 {[%clk 0:02:54.9]} 9. d3 {[%clk 0:02:56.3]} 9... O-O {[%clk 0:02:54.9]}
10. Qe2 {[%clk 0:02:56.6]} 10... a5 {[%clk 0:02:53.8]} 11. f4 {[%clk 0:02:56.2]}
11... a4 {[%clk 0:02:53.6]} 12. a3 {[%clk 0:02:56.1]} 12... Nd7 {[%clk
0:02:53.8]} 13. g4 {[%clk 0:02:53.8]} 13... Qa5 {[%clk 0:02:41.3]} 14. Nd1
{[%clk 0:02:53.5]} 14... Qa6 {[%clk 0:02:29]} 15. Qf2 {[%clk 0:02:27.1]} 15...
dxe4 {[%clk 0:02:09]} 16. dxe4 {[%clk 0:02:27]} 16... f5 {[%clk 0:02:01.1]} 17.
gxf5 {[%clk 0:02:22.7]} 17... exf5 {[%clk 0:01:59.5]} 18. e5 {[%clk 0:02:22.9]}
18... Rfe8 {[%clk 0:01:55.5]} 19. h4 {[%clk 0:02:18.7]} 19... Nf8 {[%clk
0:01:55]} 20. Be3 {[%clk 0:02:16.9]} 20... Ne6 {[%clk 0:01:54.7]} 21. Nc3 {[%clk
0:02:17.4]} 21... h5 {[%clk 0:01:50.1]} 22. Rfd1 {[%clk 0:02:16.6]} 22... Rad8
{[%clk 0:01:46.4]} 23. Bb6 {[%clk 0:02:04]} 23... Rxd1+ {[%clk 0:01:45.7]} 24.
Rxd1 {[%clk 0:02:03.7]} 24... Qc4 {[%clk 0:01:32.8]} 25. Be3 {[%clk 0:01:56.3]}
25... Qa6 {[%clk 0:01:27.2]} 26. Rd6 {[%clk 0:01:50.9]} 26... Nf8 {[%clk
0:01:05.6]} 27. Bf1 {[%clk 0:01:43.9]} 27... Qa8 {[%clk 0:01:05.6]} 28. Bc4+
{[%clk 0:01:34.9]} 28... Kh7 {[%clk 0:01:05.3]} 29. Qd2 {[%clk 0:01:19.2]} 29...
b5 {[%clk 0:01:02]} 30. Bf7 {[%clk 0:01:14.4]} 30... Rc8 {[%clk 0:01:00.8]} 31.
Bc5 {[%clk 0:01:12.4]} 31... Qb7 {[%clk 0:01:00.8]} 32. Ba2 {[%clk 0:01:06.5]}
32... Bh6 {[%clk 0:00:56.9]} 33. Qd4 {[%clk 0:01:04.2]} 33... Bg7 {[%clk
0:00:49.3]} 34. Nd1 {[%clk 0:00:59.4]} 34... Nd5 {[%clk 0:00:47.4]} 35. Ne3
{[%clk 0:00:57.5]} 35... Nxe3 {[%clk 0:00:44.1]} 36. Qxe3 {[%clk 0:00:57.4]}
36... Qe7 {[%clk 0:00:39.9]} 37. Qf2 {[%clk 0:00:54.2]} 37... Qe8 {[%clk
0:00:39.8]} 38. Qd4 {[%clk 0:00:51.4]} 38... Bh6 {[%clk 0:00:35]} 39. e6 {[%clk
0:00:42.1]} 39... Bg7 {[%clk 0:00:34.7]} 40. Qe3 {[%clk 0:00:38.3]} 40... Rc7
{[%clk 0:00:29.7]} 41. c3 {[%clk 0:00:30.1]} 41... Re7 {[%clk 0:00:27]} 42. Kg2
{[%clk 0:00:26.4]} 42... Bf6 {[%clk 0:00:26.3]} 43. Kg3 {[%clk 0:00:26.3]} 43...
Kg7 {[%clk 0:00:26.6]} 44. Bd4 {[%clk 0:00:19.1]} 44... Nh7 {[%clk 0:00:24.3]}
45. Bb6 {[%clk 0:00:12.8]} 45... Qb8 {[%clk 0:00:21.5]} 46. Rd7 {[%clk
0:00:10.5]} 46... Nf8 {[%clk 0:00:19.3]} 47. Rxe7+ {[%clk 0:00:10.3]} 47... Bxe7
{[%clk 0:00:20.2]} 48. Bd4+ {[%clk 0:00:10.5]} 48... Kg8 {[%clk 0:00:20.3]} 49.
Qf3 {[%clk 0:00:03.5]} 49... Qc7 {[%clk 0:00:18.4]} 50. Be5 {[%clk 0:00:03.4]}
50... Qc8 {[%clk 0:00:18.8]} 51. c4 {[%clk 0:00:03]} 51... bxc4 {[%clk
0:00:18.1]} 52. Bxc4 {[%clk 0:00:03.9]} 52... Nxe6 {[%clk 0:00:19]} 53. Qd1
{[%clk 0:00:02.9]} 53... Kf7 {[%clk 0:00:17.9]} 54. Qxa4 {[%clk 0:00:03]} 54...
Qd7 {[%clk 0:00:17.5]} 55. Qb3 {[%clk 0:00:03.3]} 55... Bc5 {[%clk 0:00:15.8]}
56. a4 {[%clk 0:00:02.7]} 56... Ke7 {[%clk 0:00:14.9]} 57. Bxe6 {[%clk
0:00:02.6]} 57... Qxe6 {[%clk 0:00:15.8]} 58. Qxe6+ {[%clk 0:00:03]} 58... Kxe6
{[%clk 0:00:16.1]} 59. a5 {[%clk 0:00:03.6]} 59... Kd5 {[%clk 0:00:15.1]} 60.
Bb8 {[%clk 0:00:03.1]} 60... Kc4 {[%clk 0:00:13.6]} 61. a6 {[%clk 0:00:03.4]}
61... Kb3 {[%clk 0:00:13.8]} 62. a7 {[%clk 0:00:02.7]} 62... Bxa7 {[%clk
0:00:13.7]} 63. Bxa7 {[%clk 0:00:03.6]} 63... Kxb2 {[%clk 0:00:14.6]} 64. Kf3
{[%clk 0:00:04.1]} 64... Kc3 {[%clk 0:00:15]} 65. Ke3 {[%clk 0:00:04.7]} 65...
Kc4 {[%clk 0:00:15.9]} 66. Bd4 {[%clk 0:00:04.8]} 66... c5 {[%clk 0:00:16.2]}
67. Be5 {[%clk 0:00:05.2]} 67... Kd5 {[%clk 0:00:16.1]} 68. Kd3 {[%clk
0:00:05.5]} 68... c4+ {[%clk 0:00:15.9]} 69. Ke3 {[%clk 0:00:06]} 69... Kc5
{[%clk 0:00:16.3]} 70. Bc3 {[%clk 0:00:06.2]} 70... Kd5 {[%clk 0:00:17.2]} 71.
Bb2 {[%clk 0:00:06.6]} 71... Kc5 {[%clk 0:00:17.4]} 72. Bf6 {[%clk 0:00:06.7]}
72... Kd5 {[%clk 0:00:17.2]} 73. Be5 {[%clk 0:00:06.7]} 73... Kc5 {[%clk
0:00:17.4]} 74. Kd2 {[%clk 0:00:07.2]} 74... Kd5 {[%clk 0:00:17.4]} 75. Bf6
{[%clk 0:00:05.2]} 75... Ke4 {[%clk 0:00:16.8]} 76. Bg5 {[%clk 0:00:05.4]} 76...
Kd4 {[%clk 0:00:16.6]} 77. Kc2 {[%clk 0:00:05.8]} 77... c3 {[%clk 0:00:15.2]}
78. Bf6+ {[%clk 0:00:05.5]} 78... Ke4 {[%clk 0:00:15.3]} 79. Be5 {[%clk
0:00:05.5]} 79... Kf3 {[%clk 0:00:15.7]} 80. Kxc3 {[%clk 0:00:05.6]} 80... Kg4
{[%clk 0:00:16.5]} 81. Bf6 {[%clk 0:00:03.1]} 81... Kxf4 {[%clk 0:00:16.8]} 82.
Kd2 {[%clk 0:00:03.6]} 82... Kf3 {[%clk 0:00:15.7]} 83. Ke1 {[%clk 0:00:03.9]}
83... Kg2 {[%clk 0:00:15.1]} 84. Bg5 {[%clk 0:00:04.1]} 84... Kg3 {[%clk
0:00:14.1]} 85. Ke2 {[%clk 0:00:04.4]} 85... Kg2 {[%clk 0:00:14.3]} 86. Ke3
{[%clk 0:00:04.5]} 86... Kg3 {[%clk 0:00:14.4]} 87. Ke2 {[%clk 0:00:04.9]} 87...
Kg2 {[%clk 0:00:14.3]} 88. Be7 {[%clk 0:00:05]} 88... Kg3 {[%clk 0:00:13.9]} 89.
Bf6 {[%clk 0:00:05.3]} 89... Kg2 {[%clk 0:00:12.4]} 90. Ke3 {[%clk 0:00:05.5]}
90... Kg3 {[%clk 0:00:08.9]} 91. Bg5 {[%clk 0:00:05.7]} 91... f4+ {[%clk
0:00:06.2]} 92. Ke2 {[%clk 0:00:05.8]} 92... f3+ {[%clk 0:00:06.6]} 93. Kf1
{[%clk 0:00:05.9]} 93... Kh3 {[%clk 0:00:03.2]} 94. Kf2 {[%clk 0:00:05.6]} 94...
Kg4 {[%clk 0:00:03.5]} 95. Be7 {[%clk 0:00:05.7]} 95... Kf4 {[%clk 0:00:03.8]}
96. Bd8 {[%clk 0:00:06]} 1-0